{"text_format":"3","workbook":"xlsx","n_sheets":2,"sheets":["Argibidea Instrucciones","Eskaera Solicitud"],"not_rendered":{"images":3},"read":"whole","date_system":"1900"}

{"sheet":"Argibidea Instrucciones","index":0,"n_rows":30,"n_cols":1,"rows_kept":30}
{"$rows_empty":15}
["AURRETIKO ERRESERBA ESKAERETARAKO DEIALDIA."]
["Eskerrik asko gure zerbitzuak eskatzeagatik. "]
[]
["ARGIBIDEAK:"]
[]
["· Formularioa 'Eskaera Solicitud' izeneko fitxan aurkituko duzu (beheko barran)."]
["· Grisez dauden beharrezko laukitxoak bete. Gainerako guztiak blokeatuta daude arazoak saihesteko."]
["· 'Oharrak' gelaxkaz baliatu izan daitekeen edozein premia argitzeko."]
["· Excel formatupean gorde artxiboa, proiektuaren izenburua barneratzen duen izen batekin."]
["· Erreserbak 'izeneko kanalaren bidez helaraztea, edo info @ harrobia.org helbidera bidaliz. "]
[]
["Laster jasoko duzu gure erantzuna."]
["Eskaera egin ondoren, izapideak deialdiaren oinarrietan zehaztutakoaren arabera jarraituko du. "]
["Jar zaitez harremanetan edozein zalantza argitzeko."]
["946 733 518"]

{"sheet":"Eskaera Solicitud","index":1,"n_rows":69,"n_cols":19,"rows_kept":69,"merged":[[1,0,1,4],[2,2,2,4],[3,2,3,4],[3,10,4,10],[6,3,6,4],[7,3,7,4],[7,10,8,10],[8,3,8,4],[9,3,9,4],[11,10,12,10],[13,8,14,8],[16,14,17,14],[28,0,28,1],[29,0,29,1],[30,0,30,1],[31,0,31,1],[34,3,34,4],[35,1,35,2],[35,3,35,4],[40,0,40,4],[45,0,45,1],[48,0,48,1],[49,0,49,1],[50,0,50,1],[51,0,51,1],[60,7,60,9],[61,0,61,4],[61,7,61,9],[62,0,62,3],[62,7,62,9],[63,7,63,9],[64,7,64,9],[66,0,66,9],[67,0,67,9],[68,0,68,9]]}
[]
["ERRESERBA ETA ZERBITZUEN AURREKONTU ESKAERA",{"$nulls":15},"Sala Escenario",null,"Ensayos y trabajos de proyecto escénico"]
["Proiektuaren izena / Nombre del proyecto: ",{"$nulls":13},"Base",null,"Sala de Entrenamiento",null,"Evento puntual y su preparación"]
["Proiektu-mota hautatu / Selecciona el tipo de proyecto ",null,"Ensayos y trabajos de proyecto escénico",{"$nulls":7},"TARIFA REDUCIDA","SIN TÉCNICA",{"v":70,"d":"70 €"},null,"Reducida",null,"Local de reuniones",null,"Uso del espacio para proyecto no escénico"]
[{"$nulls":3},"Fecha",{"$f":"TODAY()","v":"2020-01-09"},{"$nulls":6},"CON TÉCNICA *",{"v":90,"d":"90 €"},null,"Conveniada",null,"Otros",null,"Otros"]
["ESKATZAILEA / SOLICITANTE",null,null,"Ref.",{"$nulls":6},"*Servicio técnico obligatorio",{"$nulls":3},"Última hora"]
["Izen-abizenak",null,"Erakundea / Entidad"]
["Helbidea / Dirección",null,"Herria / Localidad",{"$nulls":7},"TARIFA CONVENIADA","SIN TÉCNICA",{"v":20,"d":"20 €"}]
["PK / CP",null,"IFK / CIF",{"$nulls":8},"CON TÉCNICA *",{"v":40,"d":"40 €"},null,"Proyecto escénico con tarifa reducida"]
["Telefonoa / Teléfono",null,"E-mail",{"$nulls":11},"Proyecto escénico con tarifa conveniada"]
["ZE / Epígrafe fiscal",{"$nulls":13},"Proyecto escénico con tarifa 'Última hora'"]
["ARETOAREN ERABILERA",null,"Nahi duzun tokia aukeratu",{"$nulls":7},"ÚLTIMA HORA","SIN TÉCNICA",{"v":35,"d":"35 €"},null,"Evento "]
["Kontzeptua",null,"Hasiera\n(uu/hh/ee)","Amaiera\n(uu/hh/ee)",null,"Días","Tarifa","Subtotal","Cantidad","Subtotal",null,"CON TÉCNICA *",{"v":55,"d":"55 €"},null,"Proyecto NO escénico"]
["Aurreikusitako erreserba guztira",{"$nulls":4},{"$f":"IF(C14<>\"\",DATEDIF(C14,D14+1,\"d\"),0)","v":0},null,{"$f":"IF(G14<>\"\",_xlfn.IFS(G14=\"Base\",$F$14*250,G14=\"Reducida\",F14*70,G14=\"Última hora\",$F$14*35),0)","v":0},{"$f":"IF(F14<>\"\",H14+H15,\"\")","v":{"v":0,"d":"0 €"}},null,"*Servicio técnico obligatorio"]
["Lanaldiak ekipamendu teknikoarekin (gutxienez 5 egun)",{"$nulls":4},{"$f":"IF(C15<>\"\",DATEDIF(C15,D15+1,\"d\"),0)","v":0},null,{"$f":"IF(G15<>\"\",_xlfn.IFS(G15=\"Base\",$F$15*250,G15=\"Reducida\",F15*(M5-M4),G15=\"Conveniada\",F15*(M9-M8),G15=\"Última hora\",F15*(M13-M12)),0)","v":0}]
["*Ekipamendu teknikoarekin nahitaezko zerbitzu tekniko 1 (4 ordu) sartuko da aurrekontuan. ",{"$nulls":7},{"$f":"_xlfn.IFS($F$15=0,0,$F$15<14,111,$F$15>14,0)","v":{"v":0,"d":"0 €"}},{"$f":"SUM(I14:I16)","v":{"v":0,"d":"0 €"}}]
["LANGILE TEKNIKO OSAGARRIAK"]
["Kontzeptua",null,"Sarrera\n(uu/hh/ee)","Irteera\n(uu/hh/ee)","Zenbat teknikari","Días","Tarifa","Subtotal","Cantidad","Subtotal","Precio por media jornada",null,{"v":111,"d":"111 €"}]
["Langile teknikoak lanaldi erdian",{"$nulls":4},{"$f":"IF(C19<>\"\",DATEDIF(C19,D19+1,\"d\"),0)","v":0},null,null,{"$f":"IF(E19<>\"\",E19*F19*G19,\"\")","v":""},null,"Precio por jornada completa",null,{"v":220,"d":"220 €"},{"$nulls":4},"Entidad presentadora: "]
["Langile teknikoak lanaldi osoan",{"$nulls":4},{"$f":"IF(C20<>\"\",DATEDIF(C20,D20+1,\"d\"),0)","v":0},null,null,{"$f":"IF(E20<>\"\",E20*F20*G20,\"\")","v":""},null,"Precio hora complementaria",null,{"v":25,"d":"25 €"},{"$nulls":4},"ADDE"]
["Ordu osagarriak",{"$nulls":4},{"$f":"IF(C21<>\"\",DATEDIF(C21,D21+1,\"d\"),0)","v":0},null,null,{"$f":"IF(E21<>\"\",E21*G21,\"\")","v":""},{"$f":"SUM(I19:I21)","v":{"v":0,"d":"0 €"}},null,null,{"$f":"M23/2","v":{"v":15,"d":"15 €"}},{"$f":"N23/4","v":{"v":13.75,"d":"14 €"}},{"$f":"O23/6","v":{"v":12.5,"d":"13 €"}},null,null,"ARTEKALE"]
["OSTATUA",{"$nulls":11},"1 hab.","2 hab.","3 hab.",null,null,"BILBOESZENA"]
["Kontzeptua",null,"Sarrera\n(uu/hh/ee)","Irteera\n(uu/hh/ee)","Logelak","Días",null,null,"Cantidad","Subtotal","Precio por habitación y noche",null,{"v":30,"d":"30 €"},{"v":55,"d":"55 €"},{"v":75,"d":"75 €"},null,null,"DANTZERTI"]
["Egonaldia apartamentuan (gehienez 6 pertsona)",{"$nulls":4},{"$f":"IF(C24<>\"\",DATEDIF(C24,D24,\"d\"),0)","v":0},null,null,{"$f":"F24*E24*M23","v":{"v":0,"d":"0 €"}},null,"Precio de limpieza obligatoria y servicio",null,{"v":40,"d":"40 €"},{"$nulls":4},"ESKENA"]
["*Nahitaezko garbiketa-zerbitzu 1 sartuko da aurrekontuan.",{"$nulls":7},{"$f":"IF(E24<>\"\",$M$24,0)","v":{"v":0,"d":"0 €"}},null,"Precio de limpieza adicional",null,{"v":25,"d":"25 €"},{"$nulls":4},"EZE"]
["Aurreikusitako garbiketa gehigarriak ",{"$nulls":7},{"$f":"$E$26*$M$25","v":{"v":0,"d":"0 €"}},{"$f":"SUM(I24:I26)","v":{"v":0,"d":"0 €"}},"TARIFA REDUCIDA","Ayuda del Gobierno Vasco"]
["BESTE KONTZEPTU BATZUK",{"$nulls":9},"TARIFA CONVENIADA","Ayuda del Gobierno Vasco y el Ayto. de Bilbao"]
["Kontzeptua",null,"Hasiera\n(uu/hh/ee)","Amaiera\n(uu/hh/ee)","Unitateak","Días",null,"Precio unitario","Cantidad","Subtotal"]
["1.- ",{"$nulls":4},{"$f":"IF(C29<>\"\",DATEDIF(C29,D29+1,\"d\"),0)","v":0},null,null,{"$f":"(IF((DATEDIF(C29,D29,\"D\"))=0,1,(DATEDIF(C29,D29,\"D\")+1))*E29*H29)","v":{"v":0,"d":"0 €"}}]
["2.- ",{"$nulls":7},{"$f":"(IF((DATEDIF(C30,D30,\"D\"))=0,1,(DATEDIF(C30,D30,\"D\")+1))*E30*H30)","v":0}]
["3.-"]
["4.-",{"$nulls":8},{"$f":"SUM(I29:I32)","v":{"v":0,"d":"0 €"}}]
[]
["TARIFA MOTA"]
["Tarifa mota aukeratu",null,null,"Partaide zaren hitzartutako entitatea aukeratu:",null,{"$f":"IF(C35<>\"\",DATEDIF(C35,D35+1,\"d\"),0)","v":0}]
[null,{"$f":"IF(A36<>\"\",(_xlfn.IFS(A36=K26,L26,A36=K27,L27)),\"\")","v":""},{"$nulls":3},{"$f":"IF(C36<>\"\",DATEDIF(C36,D36+1,\"d\"),0)","v":0}]
["       Quiero acogerme a la Tarifa 'Última hora': "]
["Ver en el Catálogo de servicios las características de esta oferta"]
[]
["OHARRAK: "]
[]
[]
["TOTAL BASE",{"$nulls":8},{"$f":"SUM(J14:J41)","v":{"v":0,"d":"0 €"}}]
[]
["DESCUENTOS ESPECIALES"]
["Concepto",null,"Inicio","Fin","Unidades","Días",null,"Precio unitario","Cantidad","Subtotal"]
["Por días de Tarifa Conveniada",{"$nulls":4},{"$f":"IF(C47<>\"\",DATEDIF(C47,D47+1,\"d\"),0)","v":0},null,null,{"$f":"IF(F47<>\"\",F47*50,0)","v":{"v":0,"d":"0 €"}}]
["Por fines de semana y festivos sin uso (50%)",{"$nulls":7},{"$f":"IF(F48<>\"\",F48*50,0)","v":{"v":0,"d":"0 €"}}]
["1.- ",{"$nulls":4},{"$f":"IF(C49<>\"\",DATEDIF(C49,D49+1,\"d\"),0)","v":0},null,null,{"$f":"IF(H49<>\"\",H49*F49*E49,0)","v":0}]
["2.- ",{"$nulls":4},0]
["3.-",{"$nulls":4},0]
["4.-",{"$nulls":4},0,{"$nulls":3},{"$f":"SUM(I47:I52)","v":{"v":0,"d":"0 €"}}]
[]
["TOTAL PRESUPUESTO",{"$nulls":8},{"$f":"J43-J52","v":{"v":0,"d":"0 €"}}]
[{"$nulls":9},"(IVA no incluido)"]
["CONDICIONES GENERALES"]
["1.- La aceptación de este presupuesto supone la aceptación de la política de cancelaciones."]
["Así, para el caso de cancelación de una reserva, se establecen las siguientes compensaciones:"]
["Hasta 30 días el cliente efecturará un pago del 10% sobre el total del presupuesto."]
["Entre 29 y 10 días el cliente efecturará un pago del 15% sobre el total del presupuesto.",{"$nulls":6},"Acepto el presupuesto presentado: "]
["Con 9 días o menos, el cliente efecturará un pago del 30 % sobre el total del presupuesto.",{"$nulls":5},"Nombre y apellidos:"]
["2.- Se establece un depósito de 60 € , que se facturará en concepto de reserva del servicio. Posteriormente, se descontará del precio final.",{"$nulls":5},"Firma: "]
["3.- La reserva solo será firme tras la firma del presente presupuesto y la realización del depósito económico."]
[]
["IBAN/CC de Harrobia: ","ES02 2095 0009 8091 1177 4416"]
["Notas:"]
["Envíanos esta propuesta aceptada en formato digital a través de reservas en www.harrobia.org o al email info@harrobia.org"]
["Validez de la propuesta hasta 30 días después de la fecha."]
["Tras la aceptación de la reserva, se remitirá el contrato y documentación definitivos."]